Cogmind - Beta 14 @@@ ROGUE MODE // 2025.04.22 @ 20:28:43 Player: CRS Result: Destroyed by G-47 Trooper with Particle Gun Performance ------------- Evolutions (1) 500 Regions Visited (3) 600 Robots Destroyed (11) 55 Value Destroyed (320) 320 Prototype IDs (0) 0 Alien Tech Used (0) 0 Bonus (0) 0 TOTAL SCORE: 1475 Bonus ------- None Cogmind --------- Core Integrity 0/400 Matter 285/300 Energy 100/100 System Corruption 0% Temperature Cool (9) Movement Core (1350) Ox26 Location -9/Materials Parts ------- > --- POWER (2) -------- (None) > --- PROPULSION (3) --- (None) > --- UTILITY (2) ------ Huge Storage Unit > --- WEAPON (2) ------- (None) > --- INVENTORY (25) --- Improved Heat Sink Terrain Scanner Peak State ------------ > --- POWER ------------ Light Ion Engine > --- PROPULSION ------- Improved Hover Unit Improved Hover Unit Improved Hover Unit > --- UTILITY ---------- Small Storage Unit Weight Redist. System > --- WEAPON ----------- Particle Cannon Particle Cannon > --- INVENTORY -------- Light Ion Engine Aluminum Leg Aluminum Leg Flight Unit Flight Unit Improved Heat Sink Terrain Scanner Particle Cannon [Rating: 15] Favorites ----------- Power Light Ion Engine Engine Light Ion Engine Propulsion Light Treads Treads Light Treads Leg Aluminum Leg Wheel Compact Wheel Hover Unit Improved Hover Unit Flight Unit Flight Unit Utility Weight Redist. System Device Weight Redist. System Storage Small Storage Unit Weapon Particle Cannon Energy Cannon Particle Cannon Ballistic Gun Assault Rifle Build | -11 -10 -10 -9 ------- Run | Yrd Mat Min Mat Slots Evolved 2 | . . . 2 Power 1 | . . . 1 Propulsion 1 | . . . 1 Utility . | . . . . Weapon . | . . . . Parts Attached 23 | 7 7 . 9 Power 3 | 1 1 . 1 Engine 3 | 1 1 . 1 Core . | . . . . Reactor . | . . . . Propulsion 11 | 3 2 . 6 Treads 3 | 1 2 . . Leg 2 | . . . 2 Wheel 2 | 2 . . . Hover 3 | . . . 3 Flight 1 | . . . 1 Utility 3 | 1 1 . 1 Device 1 | . 1 . . Storage 2 | 1 . . 1 Processor . | . . . . Hackware . | . . . . Protection . | . . . . Artifact . | . . . . Weapon 6 | 2 3 . 1 Energy Gun . | . . . . Energy Cannon 4 | . 3 . 1 Ballistic Gun 2 | 2 . . . Ballistic Cannon . | . . . . Launcher . | . . . . Special Weapon . | . . . . Impact Weapon . | . . . . Slashing Weapon . | . . . . Piercing Weapon . | . . . . Special Melee Weapon . | . . . . Unidentified Prototypes . | . . . . Parts Lost 12 | . 2 . 10 Power 3 | . 1 . 2 Propulsion 5 | . 1 . 4 Utility 1 | . . . 1 Weapon 3 | . . . 3 Highest Loss Streak 9 | . 2 . 9 To Critical Strikes . | . . . . Average Slot Usage (%) 86 | . 96 100 57 Engine 12 | . 14 14 6 Treads 16 | . 18 28 3 Wheel 4 | . 9 . . Hover 3 | . . . 11 Device 12 | . 12 14 9 Storage 13 | . 14 14 11 Energy Cannon 22 | . 24 28 13 Peak Build Rating 15 | 6 11 11 15 Average Rating 9 | 3 9 11 8 On Entrance 7 | . 6 11 11 Naked Turns . | . . . . Heaviest Build 91 | 14 18 16 91 Greatest Support 46 | 26 46 46 46 Greatest Overweight (x) 26 | . . . 26 Average Overweight (x) . | . . . 3 Largest Inventory Capacity 25 | 8 8 8 25 Average Capacity 10 | 6 8 8 19 Most Carried 8 | 7 8 8 8 Average Carried 6 | 5 7 8 4 Final Capacity 25 | 8 8 8 25 Final Carried 8 | 6 8 8 2 Class Distribution -------------------- 100% | Mutant Dominant Class ---------------- Mutant | -10/Materials Mutant | -10/Mines Mutant | -9/Materials Resources | -11 -10 -10 -9 ----------- Run | Yrd Mat Min Mat Matter Collected 435 | 171 113 94 57 Remotely . | . . . . Salvage Created 421 | . 123 94 204 Parts 24 | . 9 2 13 Haulers Intercepted . | . . . . Recyclers Shooed . | . . . . Parts Field Recycled . | . . . . Retrieved Matter . | . . . . Parts Self-Destructed . | . . . . Prevented . | . . . . Kills | -11 -10 -10 -9 ------- Run | Yrd Mat Min Mat Combat Hostiles Destroyed 10 | . 5 2 3 Cannons 10 | . 5 2 3 Classes Destroyed 3 | . 2 . 1 Recycler 1 | . . . 1 Swarmer 3 | . 3 . . Grunt 7 | . 2 2 3 Best Kill Streak 5 | . 5 2 3 Combat Bots Only 5 | . 5 2 2 Max Kills in Single Turn 1 | . 1 1 1 Gunslinging . | . . . . Exploded . | . . . . Melee . | . . . . Uniques/NPCs Destroyed . | . . . . Combat | -11 -10 -10 -9 -------- Run | Yrd Mat Min Mat Hostile Shots Fired 143 | . 31 9 103 Missed 39 | . 7 . 32 Damage Taken 1456 | . 289 119 1048 Core 549 | . 93 44 412 Absorbed by Shields . | . . . . Core Remaining (%) 72 | 100 . 45 . Volleys Fired 27 | . 12 6 9 Largest 2 | . 2 2 2 Hottest 136 | . 136 136 136 Shots Fired 50 | . 24 12 14 Gun . | . . . . Cannon 50 | . 24 12 14 Launcher . | . . . . Special . | . . . . Kinetic . | . . . . Thermal 50 | . 24 12 14 Explosive . | . . . . Electromagnetic . | . . . . Robot Hit Streak 6 | . 5 4 6 Robot Miss Streak 3 | . 3 1 2 Penetration Max . | . . . . Secondary Targets . | . . . . Shots Hit Robots 23 | . 10 7 6 Core Hits 12 | . 5 3 4 Critical Kills . | . . . . Critical Parts Destroyed . | . . . . Critical Strikes . | . . . . Melee Attacks . | . . . . Impact . | . . . . Slashing . | . . . . Piercing . | . . . . Sneak Attacks . | . . . . Combat Hostiles . | . . . . Follow-up Attacks . | . . . . Damage Inflicted 470 | . 205 142 123 Guns . | . . . . Cannons 470 | . 205 142 123 Explosions . | . . . . Melee . | . . . . Ramming . | . . . . Kinetic . | . . . . Thermal 470 | . 205 142 123 Explosive . | . . . . Electromagnetic . | . . . . Impact . | . . . . Slashing . | . . . . Piercing . | . . . . Highest Corruption . | . . . . Average Corruption . | . . . . Corruption Purged . | . . . . Corruption Blocked . | . . . . Overload Shots . | . . . . Overflow Damage 1 | . 1 . . Projectiles 1 | . 1 . . Explosions . | . . . . Melee . | . . . . Knockbacks . | . . . . Impact . | . . . . Kinetic . | . . . . Secondary . | . . . . Self-Inflicted Damage . | . . . . Shots . | . . . . Rammed . | . . . . Targets Rammed . | . . . . Kicked . | . . . . Crushed . | . . . . Highest Temperature 727 | . 727 423 135 Average Temperature 202 | . 317 184 52 Received Heat Transfer 678 | . 63 66 549 Effects 22 | . 21 1 . Shutdowns 4 | . 3 1 . Energy Bleed 3 | . 3 . . Interference 3 | . 3 . . Matter Decay 2 | . 2 . . Damage (minor) 2 | . 2 . . Damage (major) 7 | . 7 . . Damage (core) 1 | . 1 . . Siege Activations . | . . . . Robots Corrupted . | . . . . Combat Hostiles . | . . . . Parts Fried . | . . . . Impact Corruptions . | . . . . Robots Melted . | . . . . Combat Hostiles . | . . . . Parts Melted 2 | . 1 1 . Heat Transferred 851 | . 370 259 222 Parts Sabotaged . | . . . . Parts Stolen . | . . . . Parts Stripped . | . . . . Power Chain Reactions . | . . . . Alert | -11 -10 -10 -9 ------- Run | Yrd Mat Min Mat Peak Influence 138 | . 138 118 90 Initial 53 | . . 53 45 Average 72 | . 85 94 56 Maximum Alert Level . | . . . . Low Security (%) 100 | 100 100 100 100 Level 1 . | . . . . Level 2 . | . . . . Level 3 . | . . . . Level 4 . | . . . . Level 5 . | . . . . High Security . | . . . . Max Security . | . . . . Squads Dispatched 1 | . . . 1 Investigation . | . . . . Extermination . | . . . . Reinforcement 1 | . . . 1 Assault . | . . . . Garrison . | . . . . Intercept . | . . . . Searches Triggered . | . . . . Construction Impeded . | . . . . Haulers Reinforced . | . . . . Active Scanning Responses . | . . . . Cargo Convoy Interrupts . | . . . . Stealth | -11 -10 -10 -9 --------- Run | Yrd Mat Min Mat Distress Signals 5 | . . . 5 Communications Jammed . | . . . . Distress Signals . | . . . . Times Spotted 23 | . 7 3 13 Peak Tracking Total 8 | . 4 2 8 Tactical Retreats 3 | . . 1 2 Traps | -11 -10 -10 -9 ------- Run | Yrd Mat Min Mat Traps Triggered 1 | . . . 1 Indirectly . | . . . . Trap Hack Attempts . | . . . . Triggered . | . . . . Disarmed . | . . . . Reprogrammed . | . . . . Reused . | . . . . Traps Extracted . | . . . . Installed . | . . . . Triggered . | . . . . Machines | -11 -10 -10 -9 ---------- Run | Yrd Mat Min Mat Machines Disabled 2 | . 1 . 1 Max in Single Turn 1 | . 1 . 1 Machines Repaired . | . . . . Machines Dismantled . | . . . . Machines Sabotaged . | . . . . Overloaded Fab Kills . | . . . . Hacking | -11 -10 -10 -9 --------- Run | Yrd Mat Min Mat Machines Accessed 2 | . 2 . . Terminals 1 | . 1 . . Fabricators . | . . . . Repair Stations . | . . . . Recycling Units 1 | . 1 . . Scanalyzers . | . . . . Garrison Access . | . . . . Total Hacks 9 | . 9 . . Successful 3 | . 3 . . Failed 6 | . 6 . . Catastrophic . | . . . . Database Lockouts . | . . . . Manual . | . . . . Terminals 4 | . 4 . . Fabricators . | . . . . Repair Stations . | . . . . Recycling Units 5 | . 5 . . Scanalyzers . | . . . . Garrison Access . | . . . . Terminal Hacks 1 | . 1 . . Recall Reinforcements 1 | . 1 . . Fabricator Hacks . | . . . . Repair Station Hacks . | . . . . Recycling Unit Hacks 2 | . 2 . . Retrieve Matter 2 | . 2 . . Scanalyzer . | . . . . Garrison Access Hacks . | . . . . Unauthorized Hacks . | . . . . Terminals . | . . . . Fabricators . | . . . . Repair Stations . | . . . . Recycling Units . | . . . . Scanalyzers . | . . . . Garrison Access . | . . . . Data Cores Recovered . | . . . . Used . | . . . . Hacking Detections 1 | . 1 . . Full Trace Events . | . . . . Feedback Events . | . . . . Feedback Blocked . | . . . . Robot Schematics Acquired . | . . . . Robots Built . | . . . . Authchips . | . . . . Time . | . . . . Total Robot Build Rating . | . . . . Part Schematics Acquired . | . . . . Parts Built . | . . . . Authchips . | . . . . Time . | . . . . Total Part Build Rating . | . . . . Parts Repaired . | . . . . Time . | . . . . Parts Recycled . | . . . . Recycled Matter . | . . . . Retrieved Matter . | . . . . Retrieved Components . | . . . . Parts Scanalyzed . | . . . . Part Schematics Acquired . | . . . . Parts Damaged . | . . . . Bothacking | -11 -10 -10 -9 ------------ Run | Yrd Mat Min Mat Used RIF Installer . | . . . . Robots Hacked . | . . . . Non-combat . | . . . . Combat . | . . . . Robot Hacks Applied . | . . . . Relay Couplers Released . | . . . . Fabnet Peak Effective % . | . . . . Robots Rewired . | . . . . Allies Hacked . | . . . . Hacks Repelled . | . . . . Allies | -11 -10 -10 -9 -------- Run | Yrd Mat Min Mat Total Allies . | . . . . Largest Group . | . . . . Highest-Rated Group . | . . . . Highest-Rated Ally . | . . . . Total Orders . | . . . . Ally Attacks . | . . . . Total Damage . | . . . . Kills . | . . . . Allies Corrupted . | . . . . Allies Melted . | . . . . Intel | -11 -10 -10 -9 ------- Run | Yrd Mat Min Mat Robot Analysis Total . | . . . . Derelict Logs Recovered . | . . . . Drone Launches . | . . . . Drone Recoveries . | . . . . Exploration | -11 -10 -10 -9 ------------- Run | Yrd Mat Min Mat Turns Passed 746 | 62 312 177 195 Spaces Moved 401 | 44 190 100 67 Core 25 | 12 . . 13 Treads 249 | 13 114 100 22 Legs 1 | . . . 1 Wheels 95 | 19 76 . . Hover 30 | . . . 30 Flight 1 | . . . 1 Fastest Speed 50 | 50 90 160 52 Average Speed 155 | 99 132 160 252 Slowest Speed 1350 | 160 160 160 1350 Overloaded Moves . | . . . . Propulsion Burnouts . | . . . . Robots Hopped . | . . . . Cave-ins Triggered . | . . . . Exploration Rate (%) 20 | 5 31 27 18 Regions Visited 3 Branch Regions 1 Pre-discovered Areas 1 | . . 1 . Known Exits Taken . | . . . . Unknown Exits Taken 3 | 1 1 1 . Scrap Searched . | . . . . Spaces Dug . | . . . . Terrain Destroyed . | . . . . Melee . | . . . . Projectile . | . . . . AOE . | . . . . Terrain Rammed . | . . . . Walls Destroyed . | . . . . Machines Disabled . | . . . . Actions | -11 -10 -10 -9 --------- Run | Yrd Mat Min Mat Total 485 | 61 229 105 90 Wait 8 | . 8 . . Move 398 | 43 189 99 67 Hop . | . . . . Pick Up 20 | 10 8 . 2 Fast Attach 8 | 2 2 . 4 Attach 15 | 5 5 . 5 Detach 1 | 1 . . . Swap . | . . . . Drop 8 | . 5 . 3 Fire 27 | . 12 6 9 Melee . | . . . . Ram . | . . . . Kick . | . . . . Crush . | . . . . Escape Stasis . | . . . . Rewire . | . . . . Trap . | . . . . Miscellaneous . | . . . . Route ------- -11/Scrapyard -10/Materials -10/Mines -9/Materials (discovered 1 exit: [*Min]) History --------- Turn | Location | Event 16 | -11/Scrapyard | Discovered new exit (range 16) 63 | -11/Scrapyard | Entered Materials 134 | -10/Materials | Discovered new exit (range 12) 318 | -10/Materials | Build established: Mutant 375 | -10/Materials | Entered Mines 376 | -10/Mines | Learned location of Storage (-8) 444 | -10/Mines | Core integrity fell below 50% 542 | -10/Mines | Discovered new exit (range 7) 552 | -10/Mines | Entered Materials 552 | -9/Materials | Evolved 2 slots: Power x1, Propulsion x1 686 | -9/Materials | Discovered new exit (range 15) 717 | -9/Materials | Lost 9 parts (2p4n3w) 730 | -9/Materials | Core integrity fell below 50% 739 | -9/Materials | Core integrity fell below 20% 747 | -9/Materials | Destroyed by G-47 Trooper with Particle Gun Last Messages --------------- Triggered Blade Trap. Massive razor-sharp blades shoot up from within the floor. Aluminum Leg severed. W-16 Scout sends out distress signal. U-05 Engineer lays Concrete. K-01 Serf collects debris. R-06 Scavenger collects Aluminum Leg. ALERT: Hostiles spotted, dispatching reinforcements to Terminal M006. K-01 Serf collects debris. R-06 Scavenger suffers critical hit (Burn). K-01 Serf collects debris. R-06 Scavenger collects Aluminum Leg. K-01 Serf collects debris. R-06 Scavenger collects Aluminum Leg. K-01 Serf collects debris. Weight Redist. System destroyed. W-16 Scout sends out distress signal. Critical hit (Burn: +37). Map ----- +----------------------------------------------------+ | ???????????# ## "T" # ??????? | | ???????????# ## """ # ??????? | | ??????????? ########### ??????? | | ??????????? ??????? | | ??????????# "T" ??????? | | ??????????# """ ???????? | | ??????????# ###+########/######T# ???????? | | ??????????#######???????# #??#?#+#????????? | | ????????????????????????#= """ #???????????????? | | ????????????????????????#%! """ #???????????????? | | ????????????????????????#! "" #???????????????? | | ????????????????????????# =! #???????????????? | | ????????????????????????# """ #???????????????? | | ????????????????????????# """" #???????????????? | | ????????????????????????# """%"#???????????????? | | ???????????????????#????# % #???????????????? | | ???????????????????# ##########/###########??????? | | ??????????????????## ^ ^ #??????? | | ???????????????#### #??????? | | ???????????? #??????? | | ?????????????????## [! """ + ????? | | ??????????????????####### [ """ ?# ???? | | ????????????????????????# #### "" ????????? | | ???????????????????######g#### " " ????????? | | ???????????????????# l # """ ????????? | | ???????????????????# @ # ???????? | | ???????????????????#] g ????????? | | ???????????????????# # #"T"# ???????? | | ???????????????????########### #######+#???????? | | ????????????????????????????? ??????????????? | | ????????????????????????????? ""#????????????? | | ????????????????????????????? ||#????????????? | | ????????????????????????????? < "?#????????????? | | ?????????????????????????????? ???????????????? | | ?????????????????????????????????????????????????? | | ?????????????????????????????????????????????????? | | ?????????????????????????????????????????????????? | | ?????????????????????????????????????????????????? | | ?????????????????????????????????????????????????? | | ?????????????????????????????????????????????????? | | ?????????????????????????????????????????????????? | | ?????????????????????????????????????????????????? | | ?????????????????????????????????????????????????? | | ?????????????????????????????????????????????????? | | ?????????????????????????????????????????????????? | | ?????????????????????????????????????????????????? | | ?????????????????????????????????????????????????? | | ?????????????????????????????????????????????????? | | ?????????????????????????????????????????????????? | | ?????????????????????????????????????????????????? | +----------------------------------------------------+ Best States ------------- Heat Dissipation 28 Energy Generation 10 Energy Capacity 250 Matter Stores 300 Matter Capacity 300 Sight Range 16 Terrain Scan Density 10 Additional Mass Support 6 Evasion (%) 54 Recoil Reduction 2 Item Schematics ----------------- None Robot Schematics ------------------ None Fabricated ------------ Nothing Alien Tech Used ----------------- None Achievements -------------- None Challenges ------------ None Game ------ Seed TowerMultinovaKinecellerator Manual? 0 Play Time 00:12:52 Cumulative 4.9 hours Start 2025.04.22 @ 20:18:35 End 2025.04.22 @ 20:28:43 Sessions 1 Manual Loads 0 Difficulty Rogue Special Mode None Game No. 12 Rogue 12 Adventurer 0 Explorer 0 Win Type - Total 0 Types 0/0/0/0/0/0/0/0/0 Lore% 1 Gallery% 9 Achievement% 11 Wizard Run 0 Options --------- Layout 1 ASCII 0 Keyboard 0 Movement Mouse Keybinds 0 Fullscreen 1 Font 24/Smallcaps Map View 50x35 Zoom Use 0% Tactical HUD 0 Map Filters NONE Filters NONE Steam 1 RUN: f1d4fafa-1e75-4632-a0fc-c9b678a1e740